Cogmind - Beta 13 @@@ ROGUE MODE // 2024.04.24 @ 18:05:02 Player: yantz Result: Destroyed by 0O-LGX(R) with Subdweller Machine Gun Performance ------------- Evolutions (0) 0 Regions Visited (2) 400 Robots Destroyed (14) 70 Value Destroyed (457) 457 Prototype IDs (0) 0 Alien Tech Used (0) 0 Bonus (0) 0 TOTAL SCORE: 927 Bonus ------- None Cogmind --------- Core Integrity 0/250 Matter 259/300 Energy 82/100 System Corruption 0% Temperature Cool (0) Movement Walking (120) Location -10/Subcaves Parts ------- > --- POWER (1) -------- (None) > --- PROPULSION (2) --- Aluminum Leg > --- UTILITY (2) ------ Terrain Scan Processor > --- WEAPON (2) ------- Subdweller Laser > --- INVENTORY (5) ---- Small Storage Unit Signal Interpreter Scrap Shield Peak State ------------ > --- POWER ------------ Light Nuclear Core > --- PROPULSION ------- Aluminum Leg Aluminum Leg > --- UTILITY ---------- Terrain Scanner Terrain Scan Processor > --- WEAPON ----------- Heavy Assault Rifle Improved Light Cannon > --- INVENTORY -------- Small Storage Unit [Rating: 12] Favorites ----------- Power Light Nuclear Core Engine Light Ion Engine Power Core Light Nuclear Core Propulsion Aluminum Leg Leg Aluminum Leg Utility Terrain Scan Processor Device Terrain Scanner Processor Terrain Scan Processor Weapon Improved Light Cannon Energy Gun EM Pulse Gun Ballistic Gun Heavy Assault Rifle Ballistic Cannon Improved Light Cannon Slashing Weapon Mining Claw Build | -11 -10 -10 ------- Run | Yrd Mat Sub Slots Evolved . | . . . Power . | . . . Propulsion . | . . . Utility . | . . . Weapon . | . . . Parts Attached 23 | 5 13 5 Power 3 | 1 2 . Engine 2 | 1 1 . Core 1 | . 1 . Reactor . | . . . Propulsion 7 | 2 5 . Treads . | . . . Leg 7 | 2 5 . Wheel . | . . . Hover . | . . . Flight . | . . . Utility 2 | . 2 . Device 1 | . 1 . Storage . | . . . Processor 1 | . 1 . Hackware . | . . . Protection . | . . . Artifact . | . . . Weapon 11 | 2 4 5 Energy Gun 2 | 1 . 1 Energy Cannon . | . . . Ballistic Gun 5 | 1 2 2 Ballistic Cannon 2 | . 1 1 Launcher . | . . . Special Weapon . | . . . Impact Weapon . | . . . Slashing Weapon 2 | . 1 1 Piercing Weapon . | . . . Special Melee Weapon . | . . . Unidentified Prototypes . | . . . Parts Lost 6 | . 1 5 Power 2 | . 1 1 Propulsion 1 | . . 1 Utility 1 | . . 1 Weapon 2 | . . 2 Highest Loss Streak 4 | . 1 4 To Critical Strikes . | . . . Average Slot Usage (%) 93 | . 95 84 Engine 3 | . 4 . Core 9 | . 9 13 Leg 25 | . 27 15 Device 12 | . 12 13 Processor 12 | . 12 14 Energy Gun 2 | . 3 2 Ballistic Gun 12 | . 12 10 Ballistic Cannon 11 | . 10 12 Slashing Weapon 1 | . . 1 Naked Turns . | . . . Heaviest Build 14 | 7 13 14 Greatest Support 20 | 20 20 20 Greatest Overweight (x) 1 | . . 1 Average Overweight (x) . | . . . Largest Inventory Capacity 5 | 5 5 5 Average Capacity 5 | 5 5 5 Most Carried 5 | 5 4 5 Average Carried 1 | 1 1 4 Final Capacity 5 | 5 5 5 Final Carried 4 | 1 3 4 Class Distribution -------------------- 58% | Scavenger-Mutant 41% | Mutant Dominant Class ---------------- Scavenger-Mutant | -10/Materials Mutant | -10/Subcaves Resources | -11 -10 -10 ----------- Run | Yrd Mat Sub Matter Collected 678 | 122 443 113 Remotely . | . . . Salvage Created 431 | . 401 30 Parts 31 | . 27 4 Haulers Intercepted . | . . . Recyclers Shooed . | . . . Parts Field Recycled . | . . . Retrieved Matter . | . . . Parts Self-Destructed 2 | . . 2 Prevented . | . . . Kills | -11 -10 -10 ------- Run | Yrd Mat Sub Combat Hostiles Destroyed 11 | . 9 2 Guns 7 | . 7 . Cannons 3 | . 1 2 AOE 1 | . 1 . Classes Destroyed 5 | . 4 1 Worker 1 | . 1 . Builder 1 | . 1 . Watcher 1 | . 1 . Grunt 9 | . 9 . Subdweller 2 | . . 2 Best Kill Streak 4 | . 4 1 Combat Bots Only 3 | . 3 1 Max Kills in Single Turn 2 | . 2 1 Gunslinging 1 | . 1 . Exploded 1 | . 1 . Melee . | . . . Uniques/NPCs Destroyed . | . . . Combat | -11 -10 -10 -------- Run | Yrd Mat Sub Hostile Shots Fired 89 | . 55 34 Missed 30 | . 18 12 Damage Taken 1036 | . 481 555 Core 272 | . 64 208 Absorbed by Shields . | . . . Core Remaining (%) 100 | 100 . . Volleys Fired 62 | . 45 17 Largest 2 | . 2 2 Hottest 99 | . 62 99 Shots Fired 117 | . 90 27 Gun 77 | . 60 17 Cannon 40 | . 30 10 Launcher . | . . . Special . | . . . Kinetic 93 | . 75 18 Thermal 9 | . . 9 Explosive . | . . . Electromagnetic 15 | . 15 . Robot Hit Streak 6 | . 6 5 Robot Miss Streak 5 | . 5 3 Penetration Max . | . . . Secondary Targets 2 | . 2 . Max Gunslinging Chain 1 | . 1 . Shots Hit Robots 53 | . 35 18 Core Hits 23 | . 17 6 Critical Kills . | . . . Critical Parts Destroyed . | . . . Critical Strikes 1 | . . 1 Destroy 1 | . . 1 Melee Attacks . | . . . Impact . | . . . Slashing . | . . . Piercing . | . . . Sneak Attacks . | . . . Combat Hostiles . | . . . Follow-up Attacks . | . . . Damage Inflicted 1124 | . 725 399 Guns 663 | . 367 296 Cannons 324 | . 221 103 Explosions 137 | . 137 . Melee . | . . . Ramming . | . . . Kinetic 661 | . 450 211 Thermal 325 | . 137 188 Explosive . | . . . Electromagnetic 138 | . 138 . Impact . | . . . Slashing . | . . . Piercing . | . . . Highest Corruption . | . . . Average Corruption . | . . . Corruption Purged . | . . . Corruption Blocked . | . . . Overload Shots . | . . . Overflow Damage . | . . . Projectiles . | . . . Explosions . | . . . Melee . | . . . Knockbacks 4 | . 2 2 Impact . | . . . Kinetic 4 | . 2 2 Secondary . | . . . Self-Inflicted Damage 10 | . 10 . Shots 1 | . 1 . Rammed . | . . . Targets Rammed . | . . . Kicked . | . . . Crushed . | . . . Highest Temperature 60 | . 60 1 Average Temperature 14 | . 14 1 Received Heat Transfer 297 | . 261 36 Siege Activations . | . . . Robots Corrupted . | . . . Combat Hostiles . | . . . Parts Fried 2 | . 2 . Impact Corruptions . | . . . Robots Melted . | . . . Combat Hostiles . | . . . Parts Melted . | . . . Heat Transferred 375 | . 150 225 Parts Sabotaged . | . . . Parts Stolen . | . . . Parts Stripped . | . . . Power Chain Reactions 2 | . 2 . Alert | -11 -10 -10 ------- Run | Yrd Mat Sub Peak Influence 179 | . 179 . Initial . | . . . Average 59 | . 61 . Maximum Alert Level . | . . . Low Security (%) 100 | 100 100 . Level 1 . | . . . Level 2 . | . . . Level 3 . | . . . Level 4 . | . . . Level 5 . | . . . High Security . | . . . Max Security . | . . . Squads Dispatched 2 | . 2 . Investigation . | . . . Extermination . | . . . Reinforcement 2 | . 2 . Assault . | . . . Garrison . | . . . Intercept . | . . . Searches Triggered . | . . . Construction Impeded . | . . . Haulers Reinforced . | . . . Active Scanning Responses . | . . . Cargo Convoy Interrupts . | . . . Stealth | -11 -10 -10 --------- Run | Yrd Mat Sub Distress Signals . | . . . Communications Jammed . | . . . Distress Signals . | . . . Times Spotted 28 | . 15 13 Peak Tracking Total 8 | . 3 8 Tactical Retreats . | . . . Traps | -11 -10 -10 ------- Run | Yrd Mat Sub Traps Triggered 2 | . 2 . Indirectly . | . . . Trap Hack Attempts . | . . . Triggered . | . . . Disarmed . | . . . Reprogrammed . | . . . Reused . | . . . Traps Extracted . | . . . Installed . | . . . Triggered . | . . . Machines | -11 -10 -10 ---------- Run | Yrd Mat Sub Machines Disabled 1 | . 1 . Max in Single Turn 1 | . 1 . Machines Repaired . | . . . Machines Dismantled . | . . . Machines Sabotaged . | . . . Overloaded Fab Kills . | . . . Hacking | -11 -10 -10 --------- Run | Yrd Mat Sub Machines Accessed 2 | . 2 . Terminals 2 | . 2 . Fabricators . | . . . Repair Stations . | . . . Recycling Units . | . . . Scanalyzers . | . . . Garrison Access . | . . . Total Hacks 3 | . 3 . Successful . | . . . Failed 3 | . 3 . Catastrophic . | . . . Database Lockouts . | . . . Manual . | . . . Terminals 3 | . 3 . Fabricators . | . . . Repair Stations . | . . . Recycling Units . | . . . Scanalyzers . | . . . Garrison Access . | . . . Terminal Hacks . | . . . Fabricator Hacks . | . . . Repair Station Hacks . | . . . Recycling Unit Hacks . | . . . Scanalyzer . | . . . Garrison Access Hacks . | . . . Unauthorized Hacks . | . . . Terminals . | . . . Fabricators . | . . . Repair Stations . | . . . Recycling Units . | . . . Scanalyzers . | . . . Garrison Access . | . . . Data Cores Recovered . | . . . Used . | . . . Hacking Detections 1 | . 1 . Full Trace Events . | . . . Feedback Events . | . . . Feedback Blocked . | . . . Robot Schematics Acquired . | . . . Robots Built . | . . . Authchips . | . . . Time . | . . . Total Robot Build Rating . | . . . Part Schematics Acquired . | . . . Parts Built . | . . . Authchips . | . . . Time . | . . . Total Part Build Rating . | . . . Parts Repaired . | . . . Time . | . . . Parts Recycled . | . . . Recycled Matter . | . . . Retrieved Matter . | . . . Retrieved Components . | . . . Parts Scanalyzed . | . . . Part Schematics Acquired . | . . . Parts Damaged . | . . . Bothacking | -11 -10 -10 ------------ Run | Yrd Mat Sub Used RIF Installer . | . . . Robots Hacked . | . . . Non-combat . | . . . Combat . | . . . Robot Hacks Applied . | . . . Relay Couplers Released . | . . . Fabnet Peak Effective % . | . . . Robots Rewired . | . . . Allies Hacked . | . . . Hacks Repelled . | . . . Allies | -11 -10 -10 -------- Run | Yrd Mat Sub Total Allies . | . . . Largest Group . | . . . Highest-Rated Group . | . . . Highest-Rated Ally . | . . . Total Orders . | . . . Ally Attacks . | . . . Total Damage . | . . . Kills . | . . . Allies Corrupted . | . . . Allies Melted . | . . . Intel | -11 -10 -10 ------- Run | Yrd Mat Sub Robot Analysis Total . | . . . Derelict Logs Recovered . | . . . Drone Launches . | . . . Drone Recoveries . | . . . Exploration | -11 -10 -10 ------------- Run | Yrd Mat Sub Turns Passed 1749 | 42 1437 270 Spaces Moved 1175 | 32 1020 123 Core 9 | 9 . . Treads . | . . . Legs 1166 | 23 1020 123 Wheels . | . . . Hover . | . . . Flight . | . . . Fastest Speed 50 | 50 120 120 Average Speed 125 | 100 120 177 Slowest Speed 190 | 120 120 190 Overloaded Moves . | . . . Propulsion Burnouts . | . . . Robots Hopped . | . . . Cave-ins Triggered . | . . . Exploration Rate (%) 36 | 3 96 10 Regions Visited 2 Branch Regions 1 Pre-discovered Areas . | . . . Known Exits Taken . | . . . Unknown Exits Taken 2 | 1 1 . Scrap Searched 1 | . . 1 Spaces Dug . | . . . Terrain Destroyed 11 | . 11 . Melee . | . . . Projectile . | . . . AOE 11 | . 11 . Terrain Rammed . | . . . Walls Destroyed . | . . . Machines Disabled . | . . . Actions | -11 -10 -10 --------- Run | Yrd Mat Sub Total 1333 | 42 1142 149 Wait 46 | . 46 . Move 1173 | 31 1019 123 Hop . | . . . Pick Up 22 | 6 14 2 Fast Attach 1 | . . 1 Attach 14 | 5 7 2 Detach . | . . . Swap 8 | . 6 2 Drop 7 | . 5 2 Fire 62 | . 45 17 Melee . | . . . Ram . | . . . Kick . | . . . Crush . | . . . Escape Stasis . | . . . Rewire . | . . . Trap . | . . . Miscellaneous . | . . . Route ------- -11/Scrapyard -10/Materials (discovered 5 exits: [*Mat x3] / [*Min] / [*Sub]) -10/Subcaves History --------- Turn | Location | Event 5 | -11/Scrapyard | Discovered new exit (range 16) 43 | -11/Scrapyard | Entered Materials 166 | -10/Materials | Discovered new exit (range 16) 306 | -10/Materials | Build established: Mutant 555 | -10/Materials | Discovered new exit (range 15) 701 | -10/Materials | Discovered new exit (range 8) 821 | -10/Materials | Build established: Scavenger-Mutant 942 | -10/Materials | Discovered new exit (range 14) 1264 | -10/Materials | Discovered new exit (range 15) 1480 | -10/Materials | Entered Subcaves 1723 | -10/Subcaves | Ambushed by swarm of Subdwellers 1727 | -10/Subcaves | Ambushed by Subdwellers from Twisted Machinery 1727 | -10/Subcaves | Ambushed by Subdwellers from Twisted Machinery 1727 | -10/Subcaves | Ambushed by Subdwellers from Twisted Machinery 1732 | -10/Subcaves | Core integrity fell below 50% 1744 | -10/Subcaves | Core integrity fell below 20% 1750 | -10/Subcaves | Destroyed by 0O-LGX(R) with Subdweller Machine Gun Last Messages --------------- Shield. CC-SJC(g): "Sorry we're late! Had another grouchy Sub to deal with. Who's the new fellow?" 3I-RES(R) suffers critical hit (Destroy). 3I-RES(R) destroyed. 1V-MBQ(R) affixes Scrap Shield Fragment to Scrap Shield. XR-TPW(R) affixes Scrap Shield Fragment to Scrap Shield. Terrain Scanner destroyed. ZX-HUE(R) suffers critical hit (Burn). 0O-LGX(R) affixes Scrap Shield Fragment to Scrap Shield. XR-TPW(R) suffers critical hit (Burn). ZX-HUE(R) affixes Scrap Shield Fragment to Scrap Shield. Hvy. Assault Rifle destroyed. Lgt. Nuclear Core destroyed. XR-TPW(R) destroyed. Map ----- +----------------------------------------------------+ | ????????## ##" " """## ### ###?#?#??#? | | ??? ?# #""# "" ### ## #?#?##???? | | ? ###### ## #???#????? | | # # # ##???# ## ##??#?????# | | ??????#?# #####?### #?##????#?? | | ?????????## #???#?##?## ### ##??#???#?? | | ??????????####???#?##### ## ?## ##??##???#? | | ??????????####?##### ### ####?# ##????#?#?? | | ????????###????#### ###### ##??#?????? | | ???????#???? """"#?# #?#### ##????????? | | ??????????#? "? ?"??# ##?## ##??##?#??? | | ???????????? ## "## #### #?#???????? | | ?????????????#?$ ?## ### ##?????????? | | ???????#?" ?##? ??# #?# ####?#??#?#??? | | ?????????????#?## ## ### ##??????#?????? | | ??????????? #?# #" ####?#?????????? | | ??????????? ?### ## #??#?????? | | ?????????"? ??## #### #??#?#???? | | ?????????"?? #?# #"" ##?#### # #???#????? | | ?????????#?? ?# ###" ##??##### #????????? | | ????????#""?#?#" "?# #######?# #????????? | | ?????????? #?#? ""### ###?##### #????????? | | ???????#?#???" "##### ###? "##?#??????? | | ?????????#?###??## #" ###? ""###???????? | | ?????????#?##?#### ##!g# ## " ????????? | | ?????????????#??## g @g= ####? ?"???????? | | ???????????###### % ####????????????? | | ??????????#??#### *!RRR= # #####??#"?????????? | | ???????????#?#### ##%R% ######?#??????????????? | | ?????????????#?### ##=!R %##?#??###? ? ?#???????? | | ?????????#??##???# [&=!& ?###?? ?? ?????????? | | ???????????????#?# ! "???##?#????????????? | | ?????????????#???# ### % ###?##????????????? | | ?????????????##??## ##?#######?#??????????????? | | ?????????????????## #########??#?#??###??????????? | | ??????????????### ???#??#?#?#?#?????#??????????? | | ???????????????### ?##????###?##?#??????????????? | | ?????????????????# ????#???????##?#??????????????? | | ?????????????????#??##??###??#?#?????????????????? | | ?????????????????????###?##??????????????????????? | | ?????????????????????#?#?#????#??????????????????? | | ?????????????????????????????????????????????????? | | ?????????????????????????????????????????????????? | | ?????????????????????????????????????????????????? | | ?????????????????????????????????????????????????? | | ?????????????????????????????????????????????????? | | ?????????????????????????????????????????????????? | | ?????????????????????????????????????????????????? | | ?????????????????????????????????????????????????? | | ?????????????????????????????????????????????????? | +----------------------------------------------------+ Best States ------------- Heat Dissipation 25 Energy Generation 14 Energy Capacity 160 Matter Stores 300 Matter Capacity 300 Sight Range 16 Terrain Scan Range 14 Terrain Scan Density 85 Evasion (%) 55 Item Schematics ----------------- None Robot Schematics ------------------ None Fabricated ------------ Nothing Alien Tech Used ----------------- None Achievements -------------- None Challenges ------------ None Game ------ Seed PotentialEncryptedStorage Manual? 0 Play Time 00:16:13 Cumulative 8.0 hours Start 2024.04.17 @ 15:11:39 End 2024.04.24 @ 18:05:02 Sessions 3 Manual Loads 0 Difficulty Rogue Special Mode None Game No. 12 Rogue 12 Adventurer 0 Explorer 0 Win Type - Total 0 Types 0/0/0/0/0/0/0/0/0 Lore% 3 Gallery% 16 Achievement% 11 Wizard Run 0 Options --------- Layout 1 ASCII 0 Keyboard 0 Movement Mouse Keybinds 0 Fullscreen 1 Font 24/Smallcaps Map View 50x35 Zoom Use 0% Tactical HUD 0 Map Filters NONE Filters NONE Steam 1 RUN: d3e2e9f6-b133-4587-a259-a4ba2457ddda